[Event "XLII San Sebastian Open 2019"]
[Site "San Sebastian"]
[Date "2019.04.13"]
[Round "1.1"]
[White "Svyatoslav, Vorobyev"]
[Black "Vazquez Igarza, Renier"]
[Result "0-1"]
[ECO "D02"]
[WhiteElo "1835"]
[BlackElo "2548"]
[Annotator "RC"]
[PlyCount "44"]
[EventDate "2019.04.13"]
[EventType "swiss"]
[EventCountry "ESP"]
[SourceTitle "playchess.com"]
[Source "ChessBase"]
[SourceQuality "1"]
[TimeControl "5400+30"]

1. Nf3 {[%emt 0:00:00]} Nf6 {[%emt 0:03:51]} 2. g3 {[%emt 0:00:00]} g6 {[%emt 0:02:37]} 3. Bg2 {[%emt 0:00:00]} Bg7 {[%emt 0:00:01]} 4. O-O {[%emt 0:00:13]} O-O {[%emt 0:00:07]} 5. d4 {[%emt 0:00:02]} d5 {[%emt 0:01:53]} 6. Ne5 {[%emt 0:00:24]} c5 {[%emt 0:03:19]} 7. c3 {[%emt 0:01:46]} Nc6 {[%emt 0:00:48]} 8. h3 {[%emt 0:22:08]} Qb6 {[%emt 0:01:12]} 9. dxc5 {[%emt 0:03:21]} Qxc5 {[%emt 0:01:12]} 10. Be3 {[%emt 0:01:09]} Qd6 {[%emt 0:00:45]} 11. Nd3 {[%emt 0:03:36]} Rd8 {[%emt 0:03:26]} 12. Na3 {[%emt 0:01:18]} e5 {[%emt 0:04:52]} 13. Nb5 {[%emt 0:12:38]} Qb8 {[%emt 0:00:46]} 14. a4 {[%emt 0:16:58]} Ne4 {[%emt 0:08:51]} 15. Nb4 {[%emt 0:12:40]} Be6 {[%emt 0:05:38]} 16. Qd3 {[%emt 0:11:19]} a6 {[%emt 0:01:09]} 17. Nxc6 {[%emt 0:04:22]} bxc6 {[%emt 0:00:09]} 18. Na7 {[%emt 0:03:50]} Qb7 {[%emt 0:03:34]} 19. b4 {[%emt 0:02:49]} c5 {[%emt 0:05:29]} 20. bxc5 {[%emt 0:00:52]} Qxa7 {[%emt 0:00:30]} 21. Rab1 {[%emt 0:00:34]} Nxc5 {[%emt 0:00:48]} 22. Qd2 {[%emt 0:00:16]} Qc7 {[%emt 0:00:20]} 0-1

[Event "XLII San Sebastian Open 2019"]
[Site "San Sebastian"]
[Date "2019.04.13"]
[Round "1.2"]
[White "Pulvett Marin, Daniel Eduardo"]
[Black "Sanchez Merino, Christian"]
[Result "1-0"]
[ECO "E91"]
[WhiteElo "2468"]
[BlackElo "1832"]
[Annotator "RC"]
[PlyCount "93"]
[EventDate "2019.04.13"]
[EventType "swiss"]
[EventCountry "ESP"]
[SourceTitle "playchess.com"]
[Source "ChessBase"]
[SourceQuality "1"]
[TimeControl "5400+30"]

1. d4 {[%emt 0:00:00]} g6 {[%emt 0:00:00]} 2. c4 {[%emt 0:00:30]} Bg7 {[%emt 0:00:30]} 3. e4 {[%emt 0:00:30]} d6 {[%emt 0:00:30]} 4. Nc3 {[%emt 0:00:30]} Nf6 {[%emt 0:00:30]} 5. Nf3 {[%emt 0:00:30]} O-O {[%emt 0:00:30]} 6. Be2 {[%emt 0:00:30]} Nc6 {[%emt 0:00:30]} 7. d5 {[%emt 0:00:30]} Nb8 {[%emt 0:00:30]} 8. O-O {[%emt 0:00:30]} e5 {[%emt 0:00:30]} 9. Bg5 {[%emt 0:00:30]} h6 {[%emt 0:00:30]} 10. Bh4 {[%emt 0:00:30]} g5 {[%emt 0:00:30]} 11. Bg3 {[%emt 0:00:30]} Nh7 {[%emt 0:00:30]} 12. Nd2 {[%emt 0:00:30]} Nd7 {[%emt 0:00:30]} 13. b4 {[%emt 0:00:30]} Ndf6 {[%emt 0:00:30]} 14. c5 {[%emt 0:00:30]} Nxe4 {[%emt 0:00:30]} 15. Ndxe4 {[%emt 0:00:30]} f5 {[%emt 0:00:30]} 16. Rc1 {[%emt 0:00:30]} fxe4 {[%emt 0:00:30]} 17. Nxe4 {[%emt 0:00:30]} Nf6 {[%emt 0:00:30]} 18. Nxf6+ {[%emt 0:00:30]} Qxf6 {[%emt 0:00:30]} 19. cxd6 {[%emt 0:00:30]} cxd6 {[%emt 0:00:30]} 20. Bh5 {[%emt 0:00:30]} Bf5 {[%emt 0:00:30]} 21. h3 {[%emt 0:00:30]} Rac8 {[%emt 0:00:30]} 22. Qa4 {[%emt 0:00:30]} a6 {[%emt 0:00:30]} 23. Qa5 {[%emt 0:00:30]} Qe7 {[%emt 0:00:30]} 24. Qb6 {[%emt 0:00:30]} Qd7 {[%emt 0:00:30]} 25. Kh2 {[%emt 0:00:30]} Rfd8 {[%emt 0:00:30]} 26. a4 {[%emt 0:00:30]} Bf6 {[%emt 0:00:30]} 27. Rfe1 {[%emt 0:00:30]} Be7 {[%emt 0:00:30]} 28. f3 {[%emt 0:00:30]} Rxc1 {[%emt 0:00:30]} 29. Rxc1 {[%emt 0:00:30]} Rc8 {[%emt 0:00:30]} 30. Rxc8+ {[%emt 0:00:30]} Qxc8 {[%emt 0:00:30]} 31. b5 {[%emt 0:00:30]} axb5 {[%emt 0:00:30]} 32. axb5 {[%emt 0:00:30]} Kg7 {[%emt 0:00:30]} 33. Bf2 {[%emt 0:00:30]} Kf6 {[%emt 0:00:30]} 34. f4 {[%emt 0:00:30]} Kg7 {[%emt 0:00:30]} 35. fxe5 {[%emt 0:00:30]} dxe5 {[%emt 0:00:30]} 36. d6 {[%emt 0:00:30]} Bd8 {[%emt 0:00:30]} 37. Qe3 {[%emt 0:00:30]} Qe6 {[%emt 0:00:30]} 38. Bg3 {[%emt 0:00:30]} e4 {[%emt 0:00:30]} 39. Qc3+ {[%emt 0:00:30]} Kh7 {[%emt 0:00:30]} 40. Bd1 {[%emt 0:00:30]} Qd5 {[%emt 0:00:30]} 41. Be2 {[%emt 0:00:30]} Qe6 {[%emt 0:00:30]} 42. Bc4 {[%emt 0:00:30]} Qe8 {[%emt 0:00:30]} 43. Qd4 {[%emt 0:00:30]} Kg6 {[%emt 0:00:30]} 44. Be5 {[%emt 0:00:30]} Kh7 {[%emt 0:00:30]} 45. Qd5 {[%emt 0:00:30]} e3 {[%emt 0:00:30]} 46. Qxb7+ {[%emt 0:00:30]} Qd7 {[%emt 0:00:30]} 47. Qd5 {[%emt 0:00:30]} 1-0

[Event "XLII San Sebastian Open 2019"]
[Site "San Sebastian"]
[Date "2019.04.14"]
[Round "2.10"]
[White "Lopez Mijail, Nicolas"]
[Black "Prieto Aranguren, Alain"]
[Result "0-1"]
[ECO "B19"]
[WhiteElo "1980"]
[BlackElo "2257"]
[Annotator "RC"]
[PlyCount "82"]
[EventDate "2019.04.13"]
[EventType "swiss"]
[EventCountry "ESP"]
[SourceTitle "playchess.com"]
[Source "ChessBase"]
[SourceQuality "1"]
[TimeControl "5400+30"]

1. e4 {[%emt 0:07:08]} c6 {[%emt 0:00:00]} 2. d4 {[%emt 0:00:06]} d5 {[%emt 0:00:00]} 3. Nd2 {[%emt 0:00:05]} dxe4 {[%emt 0:00:19]} 4. Nxe4 {[%emt 0:00:06]} Bf5 {[%emt 0:00:19]} 5. Ng3 {[%emt 0:00:07]} Bg6 {[%emt 0:00:04]} 6. h4 {[%emt 0:00:07]} h6 {[%emt 0:00:03]} 7. Nf3 {[%emt 0:00:05]} Nd7 {[%emt 0:00:04]} 8. h5 {[%emt 0:00:06]} Bh7 {[%emt 0:00:03]} 9. Bd3 {[%emt 0:00:06]} Bxd3 {[%emt 0:00:05]} 10. Qxd3 {[%emt 0:00:06]} Ngf6 {[%emt 0:00:16]} 11. Bd2 {[%emt 0:00:07]} e6 {[%emt 0:00:04]} 12. O-O-O {[%emt 0:00:06]} Be7 {[%emt 0:00:05]} 13. Kb1 {[%emt 0:01:03]} Qb6 {[%emt 0:01:18]} 14. c4 {[%emt 0:02:40]} Rd8 {[%emt 0:00:04]} 15. Ne4 {[%emt 0:11:48]} O-O {[%emt 0:03:08]} 16. Rhg1 {[%emt 0:15:19]} c5 {[%emt 0:01:36]} 17. d5 {[%emt 0:03:42]} Nxe4 {[%emt 0:01:46]} 18. Qxe4 {[%emt 0:00:08]} Nf6 {[%emt 0:01:03]} 19. Qe1 {[%emt 0:02:26]} Qd6 {[%emt 0:11:42]} 20. dxe6 {[%emt 0:09:21]} Nxh5 {[%emt 0:16:32]} 21. exf7+ {[%emt 0:13:15]} Rxf7 {[%emt 0:01:35]} 22. Be3 {[%emt 0:02:18]} Qc7 {[%emt 0:08:04]} 23. Rxd8+ {[%emt 0:02:49]} Bxd8 {[%emt 0:00:54]} 24. Qe2 {[%emt 0:06:46]} Nf4 {[%emt 0:10:27]} 25. Qd2 {[%emt 0:04:09]} Be7 {[%emt 0:01:40]} 26. g3 {[%emt 0:04:56]} Nh3 {[%emt 0:10:10]} 27. Rh1 {[%emt 0:00:06]} Qc6 {[%emt 0:03:32]} 28. Rxh3 {[%emt 0:03:19]} Qxf3 {[%emt 0:00:25]} 29. Qc2 {[%emt 0:04:45]} b6 {[%emt 0:05:30]} 30. a3 {[%emt 0:00:36]} Bf6 {[%emt 0:00:20]} 31. Qg6 {[%emt 0:01:53]} Qe2 {[%emt 0:01:38]} 32. Bc1 {[%emt 0:00:34]} Bxb2 {[%emt 0:05:52]} 33. Rxh6 {[%emt 0:01:18]} Bxc1 {[%emt 0:00:09]} 34. Qh7+ {[%emt 0:02:50]} Kf8 {[%emt 0:00:04]} 35. Qh8+ {[%emt 0:00:17]} Ke7 {[%emt 0:00:03]} 36. Re6+ {[%emt 0:00:33]} Qxe6 {[%emt 0:00:27]} 37. Qh4+ {[%emt 0:00:10]} Kd7 {[%emt 0:01:03]} 38. Qd4+ {[%emt 0:00:48]} cxd4 {[%emt 0:00:08]} 39. c5 {[%emt 0:00:04]} Rxf2 {[%emt 0:01:07]} 40. c6+ {[%emt 0:00:08]} Kxc6 {[%emt 0:00:22]} 41. g4 {[%emt 0:00:12]} Qe1 {[%emt 0:00:53]} 0-1

[Event "XLII San Sebastian Open 2019"]
[Site "San Sebastian"]
[Date "2019.04.14"]
[Round "3.4"]
[White "Cifuentes Parada, Roberto"]
[Black "Randazzo, Adrian"]
[Result "1-0"]
[ECO "A32"]
[WhiteElo "2445"]
[BlackElo "2248"]
[Annotator "RC"]
[PlyCount "139"]
[EventDate "2019.04.13"]
[EventType "swiss"]
[EventCountry "ESP"]
[SourceTitle "playchess.com"]
[Source "ChessBase"]
[SourceQuality "1"]
[TimeControl "5400+30"]

1. d4 {[%emt 0:00:00]} e6 {[%emt 0:02:10]} 2. Nf3 {[%emt 0:00:05]} c5 {[%emt 0:00:11]} 3. c4 {[%emt 0:00:31]} cxd4 {[%emt 0:00:15]} 4. Nxd4 {[%emt 0:00:06]} Nf6 {[%emt 0:00:06]} 5. g3 {[%emt 0:01:26]} d5 {[%emt 0:01:14]} 6. Bg2 {[%emt 0:00:08]} Bb4+ {[%emt 0:01:04]} 7. Bd2 {[%emt 0:00:27]} Bxd2+ {[%emt 0:01:17]} 8. Qxd2 {[%emt 0:00:52]} O-O {[%emt 0:00:55]} 9. cxd5 {[%emt 0:00:45]} Nxd5 {[%emt 0:00:25]} 10. O-O {[%emt 0:00:12]} Nc6 {[%emt 0:02:47]} 11. Nxc6 {[%emt 0:01:00]} bxc6 {[%emt 0:00:06]} 12. Rc1 {[%emt 0:00:57]} Qb6 {[%emt 0:03:01]} 13. Nc3 {[%emt 0:00:54]} Ba6 {[%emt 0:06:08]} 14. Ne4 {[%emt 0:06:13]} Rfd8 {[%emt 0:03:43]} 15. Nc5 {[%emt 0:00:41]} Nb4 {[%emt 0:27:16]} 16. Qe1 Bc8 {[%emt 0:06:30]} 17. a3 {[%emt 0:13:38]} Nd5 {[%emt 0:00:29]} 18. e4 {[%emt 0:01:16]} Ne7 {[%emt 0:08:23]} 19. Qc3 {[%emt 0:00:58]} a5 {[%emt 0:00:23]} 20. Rd1 {[%emt 0:01:22]} Ba6 {[%emt 0:03:00]} 21. Bf3 {[%emt 0:05:07]} Ng6 {[%emt 0:10:18]} 22. h4 {[%emt 0:01:12]} Nf8 {[%emt 0:01:53]} 23. h5 {[%emt 0:00:41]} h6 {[%emt 0:00:06]} 24. e5 {[%emt 0:00:37]} Rab8 {[%emt 0:02:50]} 25. b3 {[%emt 0:01:17]} Bb5 {[%emt 0:10:04]} 26. Kg2 {[%emt 0:03:25]} Ra8 {[%emt 0:02:18]} 27. a4 {[%emt 0:02:22]} Ba6 {[%emt 0:00:03]} 28. Nxa6 {[%emt 0:01:33]} Rxa6 {[%emt 0:00:43]} 29. Rxd8 {[%emt 0:00:52]} Qxd8 {[%emt 0:00:04]} 30. Rd1 {[%emt 0:00:55]} Qc7 {[%emt 0:02:19]} 31. Rd6 {[%emt 0:00:37]} g6 {[%emt 0:03:35]} 32. Qd2 {[%emt 0:04:15]} Kg7 {[%emt 0:00:40]} 33. Qf4 {[%emt 0:01:11]} Qe7 {[%emt 0:00:23]} 34. Bxc6 {[%emt 0:02:13]} gxh5 {[%emt 0:00:35]} 35. Bb5 {[%emt 0:01:15]} Ra7 {[%emt 0:00:20]} 36. Qd4 {[%emt 0:04:36]} h4 {[%emt 0:00:56]} 37. gxh4 {[%emt 0:00:44]} Ng6 {[%emt 0:00:07]} 38. Kg3 {[%emt 0:05:49]} Rc7 {[%emt 0:00:21]} 39. Bc4 {[%emt 0:01:30]} h5 {[%emt 0:01:38]} 40. f3 {[%emt 0:02:18]} Kh6 {[%emt 0:00:28]} 41. Bd3 {[%emt 0:00:39]} Rb7 {[%emt 0:00:45]} 42. Qe3+ {[%emt 0:06:40]} Kg7 {[%emt 0:00:08]} 43. Bxg6 {[%emt 0:00:15]} fxg6 {[%emt 0:00:06]} 44. Ra6 {[%emt 0:01:01]} g5 {[%emt 0:01:16]} 45. hxg5 {[%emt 0:01:32]} Kg6 {[%emt 0:00:17]} 46. Qe4+ {[%emt 0:02:49]} Kxg5 {[%emt 0:00:43]} 47. Qh4+ {[%emt 0:04:27]} Kf5 {[%emt 0:00:13]} 48. Qxe7 {[%emt 0:01:43]} Rxe7 {[%emt 0:00:01]} 49. Rxa5 {[%emt 0:00:06]} Rg7+ {[%emt 0:00:05]} 50. Kh4 {[%emt 0:01:05]} Rg1 {[%emt 0:01:12]} 51. Rb5 {[%emt 0:02:31]} Rh1+ {[%emt 0:00:25]} 52. Kg3 {[%emt 0:00:03]} h4+ {[%emt 0:00:23]} 53. Kg2 {[%emt 0:00:07]} Rb1 {[%emt 0:00:33]} 54. a5 {[%emt 0:02:11]} Ra1 {[%emt 0:00:22]} 55. Rc5 {[%emt 0:01:46]} Kf4 {[%emt 0:00:28]} 56. Rc4+ {[%emt 0:00:34]} Kxe5 {[%emt 0:00:29]} 57. Ra4 {[%emt 0:00:31]} h3+ {[%emt 0:00:44]} 58. Kxh3 {[%emt 0:00:39]} Rh1+ {[%emt 0:00:29]} 59. Kg3 {[%emt 0:00:17]} Rh7 {[%emt 0:00:06]} 60. a6 {[%emt 0:00:48]} Ra7 {[%emt 0:00:01]} 61. Kf2 {[%emt 0:00:25]} Kd5 {[%emt 0:00:09]} 62. Ke3 {[%emt 0:00:07]} Ke5 {[%emt 0:01:40]} 63. Ra5+ {[%emt 0:00:27]} Kd6 {[%emt 0:00:01]} 64. Ke4 {[%emt 0:00:25]} e5 {[%emt 0:00:28]} 65. b4 {[%emt 0:00:35]} Ra8 {[%emt 0:01:09]} 66. a7 {[%emt 0:00:13]} Kc6 {[%emt 0:00:08]} 67. Kxe5 {[%emt 0:00:38]} Kb7 {[%emt 0:00:01]} 68. f4 {[%emt 0:00:20]} Re8+ {[%emt 0:00:11]} 69. Kd6 {[%emt 0:00:20]} Ka8 {[%emt 0:00:06]} 70. f5 {[%emt 0:00:18]} 1-0

[Event "XLII San Sebastian Open 2019"]
[Site "San Sebastian"]
[Date "2019.04.14"]
[Round "3.12"]
[White "Berdote Alonso, Carlos"]
[Black "Troffiguer, Olivier"]
[Result "0-1"]
[ECO "E10"]
[WhiteElo "1879"]
[BlackElo "2081"]
[Annotator "NA RC"]
[PlyCount "96"]
[EventDate "2019.04.13"]
[EventType "swiss"]
[EventCountry "ESP"]
[SourceTitle "playchess.com"]
[Source "ChessBase"]
[SourceQuality "1"]
[TimeControl "5400+30"]

1. d4 {[%emt 0:00:00]} Nf6 {[%emt 0:00:00]} 2. c4 {[%emt 0:00:16]} e6 {[%emt 0:00:07]} 3. Nf3 {[%emt 0:01:07]} d5 {[%emt 0:00:54]} 4. Bf4 {[%emt 0:03:23]} Bb4+ {[%emt 0:07:37]} 5. Nc3 {[%emt 0:05:44]} O-O {[%emt 0:01:52]} 6. e3 {[%emt 0:06:16]} c5 {[%emt 0:04:57]} 7. Qc2 {[%emt 0:07:20]} Qa5 {[%emt 0:12:03]} 8. dxc5 {[%emt 0:08:22]} Ne4 {[%emt 0:15:32]} 9. Rc1 {[%emt 0:15:21]} Bxc3+ {[%emt 0:12:59]} 10. bxc3 {[%emt 0:01:14]} Qxc5 {[%emt 0:00:22]} 11. Bd3 {[%emt 0:01:37]} f5 {[%emt 0:00:40]} 12. O-O {[%emt 0:03:42]} Nc6 {[%emt 0:02:05]} 13. cxd5 {[%emt 0:04:55]} exd5 {[%emt 0:00:35]} 14. Nd4 {[%emt 0:00:49]} Nxd4 {[%emt 0:08:21]} 15. cxd4 {[%emt 0:02:21]} Qxc2 {[%emt 0:01:37]} 16. Rxc2 {[%emt 0:00:09]} Be6 {[%emt 0:04:29]} 17. Rc7 {[%emt 0:09:11]} Rf7 {[%emt 0:00:08]} 18. Rfc1 {[%emt 0:00:13]} Rxc7 {[%emt 0:01:01]} 19. Rxc7 {[%emt 0:00:24]} Rc8 {[%emt 0:00:16]} 20. Rxc8+ {[%emt 0:03:00]} Bxc8 {[%emt 0:00:06]} 21. Bxe4 {[%emt 0:00:07]} fxe4 {[%emt 0:00:51]} 22. Kf1 {[%emt 0:00:12]} Kf7 {[%emt 0:02:22]} 23. Ke1 {[%emt 0:01:24]} Ke8 {[%emt 0:00:46]} 24. Kd2 {[%emt 0:03:18]} Kd7 {[%emt 0:00:30]} 25. Kc3 {[%emt 0:05:09]} Kc6 {[%emt 0:00:23]} 26. Bb8 {[%emt 0:02:53]} a5 {[%emt 0:03:30]} 27. Be5 {[%emt 0:03:46]} g6 {[%emt 0:00:08]} 28. Bf6 {[%emt 0:00:29]} b6 {[%emt 0:05:49]} 29. Bd8 {[%emt 0:04:39]} Kb5 {[%emt 0:01:41]} 30. Bc7 {[%emt 0:01:14]} Bd7 {[%emt 0:00:46]} 31. Bd8 {[%emt 0:00:14]} Ka6 {[%emt 0:00:31]} 32. Be7 {[%emt 0:01:33]} Bb5 {[%emt 0:00:28]} 33. a3 {[%emt 0:01:02]} Bf1 {[%emt 0:00:11]} 34. g3 {[%emt 0:00:28]} Kb5 {[%emt 0:01:54]} 35. Bd8 {[%emt 0:01:24]} Bc4 {[%emt 0:00:34]} 36. Bc7 {[%emt 0:00:19]} Kc6 {[%emt 0:01:48]} 37. Bd8 {[%emt 0:00:10]} Kb7 {[%emt 0:00:15]} 38. Be7 {[%emt 0:02:38]} Kc7 {[%emt 0:00:28]} 39. Bf6 {[%emt 0:01:13]} Kd7 {[%emt 0:00:14]} 40. Be5 {[%emt 0:00:06]} b5 {[%emt 0:00:33]} 41. Bf6 {[%emt 0:00:31]} Ke6 {[%emt 0:01:38]} 42. Bd8 {[%emt 0:00:40]} Kf5 {[%emt 0:02:17]} 43. Bxa5 {[%emt 0:01:51]} Kg4 {[%emt 0:00:06]} 44. Kd2 {[%emt 0:00:45]} Kh3 {[%emt 0:00:20]} 45. Bc7 {[%emt 0:00:28]} Kxh2 {[%emt 0:00:36]} 46. g4+ {[%emt 0:00:30]} Kg2 {[%emt 0:00:10]} 47. Ke1 {[%emt 0:00:06]} h5 {[%emt 0:00:23]} 48. Bg3 Kh3 {[%emt 0:00:43]} 0-1

[Event "XLII San Sebastian Open 2019"]
[Site "San Sebastian"]
[Date "2019.04.15"]
[Round "4.12"]
[White "Gomez Calvo, Jose Ricardo"]
[Black "Pastor Alonso De Prado, Alberto"]
[Result "0-1"]
[ECO "A13"]
[WhiteElo "1897"]
[BlackElo "2090"]
[Annotator "NA RC"]
[PlyCount "44"]
[EventDate "2019.04.13"]
[EventType "swiss"]
[EventCountry "ESP"]
[SourceTitle "playchess.com"]
[Source "ChessBase"]
[SourceQuality "1"]
[TimeControl "5400+30"]

1. c4 {[%emt 0:00:03]} e6 {[%emt 0:03:23]} 2. Nc3 {[%emt 0:00:37]} d5 {[%emt 0:00:07]} 3. e3 {[%emt 0:00:46]} Nf6 {[%emt 0:01:41]} 4. Nf3 {[%emt 0:00:52]} Be7 {[%emt 0:00:36]} 5. Be2 {[%emt 0:00:29]} O-O {[%emt 0:01:19]} 6. O-O {[%emt 0:00:43]} c5 {[%emt 0:05:51]} 7. cxd5 {[%emt 0:02:14]} Nxd5 {[%emt 0:01:28]} 8. d4 {[%emt 0:01:55]} Nc6 {[%emt 0:00:35]} 9. a3 {[%emt 0:05:04]} b6 {[%emt 0:07:36]} 10. Qa4 {[%emt 0:15:51]} Bb7 {[%emt 0:09:28]} 11. Rd1 {[%emt 0:11:34]} cxd4 {[%emt 0:02:48]} 12. exd4 {[%emt 0:07:40]} a6 {[%emt 0:13:43]} 13. Nxd5 {[%emt 0:08:42]} Qxd5 {[%emt 0:00:24]} 14. Be3 {[%emt 0:00:18]} b5 {[%emt 0:02:25]} 15. Qc2 {[%emt 0:00:16]} Rac8 {[%emt 0:00:15]} 16. Qd2 {[%emt 0:02:16]} Rfd8 {[%emt 0:02:47]} 17. Ne1 {[%emt 0:01:33]} Bf6 {[%emt 0:04:40]} 18. Bf3 {[%emt 0:02:16]} Qd7 {[%emt 0:03:55]} 19. Rac1 {[%emt 0:01:37]} Nxd4 {[%emt 0:05:10]} 20. Bxd4 {[%emt 0:17:15]} Rxc1 {[%emt 0:00:46]} 21. Qxc1 {[%emt 0:01:43]} Bxf3 {[%emt 0:02:46]} 22. Nxf3 {[%emt 0:00:35]} e5 {[%emt 0:00:09]} 0-1

[Event "XLII San Sebastian Open 2019"]
[Site "San Sebastian"]
[Date "2019.04.16"]
[Round "5.1"]
[White "Pulvett Marin, Daniel Eduardo"]
[Black "Vazquez Igarza, Renier"]
[Result "0-1"]
[ECO "A05"]
[WhiteElo "2468"]
[BlackElo "2548"]
[Annotator "RC"]
[PlyCount "78"]
[EventDate "2019.04.13"]
[EventType "swiss"]
[EventCountry "ESP"]
[SourceTitle "playchess.com"]
[Source "ChessBase"]
[SourceQuality "1"]
[TimeControl "5400+30"]

1. Nf3 Nf6 2. c4 c5 3. b3 g6 4. Bb2 Bg7 5. g3 d6 6. Bg2 e5 7. O-O Nc6 8. Nc3 O-O 9. d3 Ne8 10. e4 Nc7 11. Nd5 Rb8 12. Nd2 Nxd5 13. cxd5 Nd4 14. Kh1 h5 15. Bxd4 cxd4 16. b4 Bh6 17. Nc4 b5 18. Na5 Bd7 19. f4 h4 20. Qe1 hxg3 21. fxe5 dxe5 22. Qxg3 Qe7 23. Bh3 Bf4 24. Rxf4 exf4 25. Qxf4 Bxh3 26. Nc6 Qe8 27. Rg1 Rb6 28. Nxd4 Kg7 29. e5 Qa8 30. Qf3 Rh8 31. Nc6 Rxc6 32. dxc6 Qd8 33. Rc1 Be6 34. Rc5 Qd4 35. c7 Qa1+ 36. Kg2 Qxa2+ 37. Kf1 Qb1+ 38. Kg2 Qb2+ 39. Kf1 Bh3+ 0-1

[Event "XLII San Sebastian Open 2019"]
[Site "San Sebastian"]
[Date "2019.04.16"]
[Round "5.4"]
[White "Russell, Christopher"]
[Black "Suarez Garcia, Carlos"]
[Result "1-0"]
[ECO "C11"]
[WhiteElo "2178"]
[BlackElo "2424"]
[Annotator "RC"]
[PlyCount "97"]
[EventDate "2019.04.13"]
[EventType "swiss"]
[EventCountry "ESP"]
[SourceTitle "playchess.com"]
[Source "ChessBase"]
[SourceQuality "1"]
[TimeControl "5400+30"]

1. e4 {[%emt 0:00:00]} e6 {[%emt 0:00:14]} 2. d4 {[%emt 0:00:00]} d5 {[%emt 0:00:10]} 3. Nc3 {[%emt 0:00:00]} Nf6 {[%emt 0:01:11]} 4. e5 {[%emt 0:04:20]} Nfd7 {[%emt 0:00:19]} 5. f4 {[%emt 0:00:05]} c5 {[%emt 0:00:08]} 6. Nf3 {[%emt 0:00:06]} Nc6 {[%emt 0:00:06]} 7. Be3 {[%emt 0:00:13]} Be7 {[%emt 0:00:13]} 8. Qd2 {[%emt 0:03:32]} O-O {[%emt 0:00:09]} 9. Be2 {[%emt 0:17:31]} b6 {[%emt 0:00:06]} 10. O-O {[%emt 0:02:25]} f5 {[%emt 0:00:06]} 11. Nd1 {[%emt 0:03:49]} cxd4 {[%emt 0:03:39]} 12. Nxd4 {[%emt 0:01:44]} Nxd4 {[%emt 0:00:05]} 13. Bxd4 {[%emt 0:00:11]} Nc5 {[%emt 0:01:41]} 14. Nf2 {[%emt 0:04:43]} a5 {[%emt 0:00:03]} 15. c4 {[%emt 0:09:55]} Ba6 {[%emt 0:02:28]} 16. cxd5 {[%emt 0:04:05]} Bxe2 {[%emt 0:00:07]} 17. Qxe2 {[%emt 0:00:04]} Qxd5 {[%emt 0:00:06]} 18. Rfd1 {[%emt 0:01:19]} Rfd8 {[%emt 0:03:57]} 19. Be3 {[%emt 0:02:16]} Qc6 {[%emt 0:06:33]} 20. Rac1 {[%emt 0:02:12]} Qa4 {[%emt 0:03:05]} 21. b3 {[%emt 0:03:02]} Qa3 {[%emt 0:00:04]} 22. Rc4 {[%emt 0:08:17]} Rxd1+ {[%emt 0:13:04]} 23. Nxd1 {[%emt 0:00:15]} Rd8 {[%emt 0:00:47]} 24. Nc3 {[%emt 0:08:52]} Nd3 {[%emt 0:10:03]} 25. Bxb6 {[%emt 0:07:34]} Qc1+ {[%emt 0:03:57]} 26. Qf1 {[%emt 0:01:11]} Qxf1+ {[%emt 0:05:36]} 27. Kxf1 {[%emt 0:00:04]} Ra8 {[%emt 0:00:03]} 28. Ke2 {[%emt 0:02:06]} Nb4 {[%emt 0:04:57]} 29. Bc5 {[%emt 0:00:54]} Bxc5 {[%emt 0:01:19]} 30. Rxc5 {[%emt 0:00:01]} Rd8 {[%emt 0:00:01]} 31. g3 {[%emt 0:02:04]} Nd3 {[%emt 0:00:26]} 32. Rxa5 {[%emt 0:00:44]} Nc1+ {[%emt 0:00:03]} 33. Ke1 {[%emt 0:00:44]} Nd3+ {[%emt 0:00:02]} 34. Kf1 {[%emt 0:00:48]} Rc8 {[%emt 0:00:02]} 35. Ne2 {[%emt 0:00:18]} Rc2 {[%emt 0:00:07]} 36. Nd4 {[%emt 0:03:40]} Rf2+ {[%emt 0:03:17]} 37. Kg1 {[%emt 0:00:03]} Rd2 {[%emt 0:00:08]} 38. Nxe6 {[%emt 0:01:16]} Kf7 {[%emt 0:00:09]} 39. Ng5+ {[%emt 0:00:33]} Kg6 {[%emt 0:00:03]} 40. e6 {[%emt 0:02:13]} Re2 {[%emt 0:00:31]} 41. Nf3 {[%emt 0:01:15]} Kf6 {[%emt 0:01:43]} 42. Rd5 {[%emt 0:01:07]} Re3 {[%emt 0:00:58]} 43. Nd4 {[%emt 0:01:00]} Kg6 {[%emt 0:02:07]} 44. Rxf5 {[%emt 0:00:35]} Re4 {[%emt 0:00:29]} 45. Rd5 {[%emt 0:00:19]} Nc1 {[%emt 0:00:30]} 46. Re5 {[%emt 0:01:38]} Rxe5 {[%emt 0:00:15]} 47. fxe5 {[%emt 0:00:01]} Nxa2 {[%emt 0:00:07]} 48. Kf2 {[%emt 0:00:34]} Nb4 {[%emt 0:00:04]} 49. Ke3 {[%emt 0:00:11]} 1-0

[Event "XLII San Sebastian Open 2019"]
[Site "San Sebastian"]
[Date "2019.04.16"]
[Round "5.5"]
[White "Pastor Alonso De Prado, Alberto"]
[Black "Del Rio De Angelis, Salvador G."]
[Result "0-1"]
[ECO "C02"]
[WhiteElo "2090"]
[BlackElo "2457"]
[Annotator "ChessBase"]
[PlyCount "38"]
[EventDate "2019.04.13"]
[EventType "swiss"]
[EventCountry "ESP"]
[SourceTitle "playchess.com"]
[Source "ChessBase"]
[SourceQuality "1"]
[TimeControl "5400+30"]

1. e4 {[%emt 0:02:53]} e6 {[%emt 0:00:00]} 2. d4 {[%emt 0:00:05]} d5 {[%emt 0:00:00]} 3. e5 {[%emt 0:00:24]} c5 {[%emt 0:00:14]} 4. c3 {[%emt 0:00:05]} Nc6 {[%emt 0:00:07]} 5. Nf3 {[%emt 0:00:31]} Bd7 {[%emt 0:00:17]} 6. Be2 {[%emt 0:00:08]} Nge7 {[%emt 0:00:15]} 7. dxc5 {[%emt 0:02:34]} Ng6 {[%emt 0:00:30]} 8. b4 {[%emt 0:00:07]} a5 {[%emt 0:01:25]} 9. b5 {[%emt 0:06:09]} Ncxe5 {[%emt 0:00:20]} 10. Nxe5 {[%emt 0:00:07]} Nxe5 {[%emt 0:00:05]} 11. f4 {[%emt 0:00:06]} Nc4 {[%emt 0:02:12]} 12. Bxc4 {[%emt 0:20:44]} dxc4 {[%emt 0:00:14]} 13. Be3 {[%emt 0:02:04]} Bxb5 {[%emt 0:01:00]} 14. Na3 {[%emt 0:03:47]} Qxd1+ {[%emt 0:01:54]} 15. Rxd1 {[%emt 0:00:10]} Ba6 {[%emt 0:00:04]} 16. Rb1 {[%emt 0:03:56]} Rc8 {[%emt 0:01:29]} 17. Nb5 {[%emt 0:03:22]} Bxc5 {[%emt 0:00:11]} 18. Bxc5 {[%emt 0:00:06]} Rxc5 {[%emt 0:00:05]} 19. Nd6+ {[%emt 0:00:06]} Ke7 {[%emt 0:00:26]} 0-1